{"text_format":"1","workbook":"xlsx","n_sheets":1,"sheets":["Community Partnerships"],"not_rendered":{"charts":0,"images":0,"macros":1,"external_links":2,"defined_names":2,"comments":0,"pivot_tables":0},"unopened":[],"bounds":{"document_bytes":16777216,"sheet_cells":100000,"rows_first":2000,"rows_last":500,"rows_between":2000,"halvings":0,"cell_chars":16384,"cell_head_chars":4096},"cells_cut":0,"cells_raw":0,"read":"whole","date_system":"1900"}

{"sheet":"Community Partnerships","index":0,"n_rows":208,"n_cols":21,"rows_kept":208,"cut":false,"hidden":false,"merged":[[155,0,155,1]]}
["SRC #8: Community Partnerships – Nursing Workforce Enhancement"]
[]
["Non-Profit Organization Name","NPO FEIN","NPO FDOC Document Number","NPO Principal Address","NPO Mailing Address","Description of NPO Improvements to Nursing Workforce Leading to Improved Care","Description of Respondent Financial Investments in Partnership","Description of Respondent In-Kind Investments in Partnership","Counties","Number of Counties","NPO Representative(s) in Respondent Committee(s) or Advisory Board(s)","Respondent Officer(s) in NPO Committee(s) or Advisory Board(s)",null,null,null,"A","Alachua"]
[null,null,null,null,null,null,null,null,null,{"$f":"IF(ISBLANK(I4),\"\",LEN(TRIM(I4))-LEN(SUBSTITUTE(TRIM(I4),\",\",\"\"))+1)","v":""},null,null,null,null,null,"B","Baker"]
[null,null,null,null,null,null,null,null,null,"",null,null,null,null,null,"C","Bay"]
[null,null,null,null,null,null,null,null,null,"",null,null,null,null,null,"D","Bradford"]
[null,null,null,null,null,null,null,null,null,"",null,null,null,null,null,"E","Brevard"]
[null,null,null,null,null,null,null,null,null,"",null,null,null,null,null,"F","Broward"]
[null,null,null,null,null,null,null,null,null,"",null,null,null,null,null,"G","Calhoun"]
[null,null,null,null,null,null,null,null,null,"",null,null,null,null,null,"H","Charlotte"]
[null,null,null,null,null,null,null,null,null,"",null,null,null,null,null,"I","Citrus"]
[null,null,null,null,null,null,null,null,null,"",null,null,null,null,null,null,"Clay"]
[null,null,null,null,null,null,null,null,null,"",null,null,null,null,null,null,"Collier"]
[null,null,null,null,null,null,null,null,null,"",null,null,null,null,null,null,"Columbia"]
[null,null,null,null,null,null,null,null,null,"",null,null,null,null,null,null,"DeSoto"]
[null,null,null,null,null,null,null,null,null,"",null,null,null,null,null,null,"Dixie"]
[null,null,null,null,null,null,null,null,null,"",null,null,null,null,null,null,"Duval"]
[null,null,null,null,null,null,null,null,null,"",null,null,null,null,null,null,"Escambia"]
[null,null,null,null,null,null,null,null,null,"",null,null,null,null,null,null,"Flagler"]
[null,null,null,null,null,null,null,null,null,"",null,null,null,null,null,null,"Franklin"]
[null,null,null,null,null,null,null,null,null,"",null,null,null,null,null,null,"Gadsden"]
[null,null,null,null,null,null,null,null,null,"",null,null,null,null,null,null,"Gilchrist"]
[null,null,null,null,null,null,null,null,null,"",null,null,null,null,null,null,"Glades"]
[null,null,null,null,null,null,null,null,null,"",null,null,null,null,null,null,"Gulf"]
[null,null,null,null,null,null,null,null,null,"",null,null,null,null,null,null,"Hamilton"]
[null,null,null,null,null,null,null,null,null,"",null,null,null,null,null,null,"Hardee"]
[null,null,null,null,null,null,null,null,null,"",null,null,null,null,null,null,"Hendry"]
[null,null,null,null,null,null,null,null,null,"",null,null,null,null,null,null,"Hernando"]
[null,null,null,null,null,null,null,null,null,"",null,null,null,null,null,null,"Highlands"]
[null,null,null,null,null,null,null,null,null,"",null,null,null,null,null,null,"Hillsborough"]
[null,null,null,null,null,null,null,null,null,"",null,null,null,null,null,null,"Holmes"]
[null,null,null,null,null,null,null,null,null,"",null,null,null,null,null,null,"Indian River"]
[null,null,null,null,null,null,null,null,null,"",null,null,null,null,null,null,"Jackson"]
[null,null,null,null,null,null,null,null,null,"",null,null,null,null,null,null,"Jefferson"]
[null,null,null,null,null,null,null,null,null,"",null,null,null,null,null,null,"Lafayette"]
[null,null,null,null,null,null,null,null,null,"",null,null,null,null,null,null,"Lake"]
[null,null,null,null,null,null,null,null,null,"",null,null,null,null,null,null,"Lee"]
[null,null,null,null,null,null,null,null,null,"",null,null,null,null,null,null,"Leon"]
[null,null,null,null,null,null,null,null,null,"",null,null,null,null,null,null,"Levy"]
[null,null,null,null,null,null,null,null,null,"",null,null,null,null,null,null,"Liberty"]
[null,null,null,null,null,null,null,null,null,"",null,null,null,null,null,null,"Madison"]
[null,null,null,null,null,null,null,null,null,"",null,null,null,null,null,null,"Manatee"]
[null,null,null,null,null,null,null,null,null,"",null,null,null,null,null,null,"Marion"]
[null,null,null,null,null,null,null,null,null,"",null,null,null,null,null,null,"Martin"]
[null,null,null,null,null,null,null,null,null,"",null,null,null,null,null,null,"Miami-Dade"]
[null,null,null,null,null,null,null,null,null,"",null,null,null,null,null,null,"Monroe"]
[null,null,null,null,null,null,null,null,null,"",null,null,null,null,null,null,"Nassau"]
[null,null,null,null,null,null,null,null,null,"",null,null,null,null,null,null,"Okaloosa"]
[null,null,null,null,null,null,null,null,null,"",null,null,null,null,null,null,"Okeechobee"]
[null,null,null,null,null,null,null,null,null,"",null,null,null,null,null,null,"Orange"]
[null,null,null,null,null,null,null,null,null,"",null,null,null,null,null,null,"Osceola"]
[null,null,null,null,null,null,null,null,null,"",null,null,null,null,null,null,"Palm Beach"]
[null,null,null,null,null,null,null,null,null,"",null,null,null,null,null,null,"Pasco"]
[null,null,null,null,null,null,null,null,null,"",null,null,null,null,null,null,"Pinellas"]
[null,null,null,null,null,null,null,null,null,"",null,null,null,null,null,null,"Polk"]
[null,null,null,null,null,null,null,null,null,"",null,null,null,null,null,null,"Putnam"]
[null,null,null,null,null,null,null,null,null,"",null,null,null,null,null,null,"St. Johns"]
[null,null,null,null,null,null,null,null,null,"",null,null,null,null,null,null,"St. Lucie"]
[null,null,null,null,null,null,null,null,null,"",null,null,null,null,null,null,"Santa Rosa"]
[null,null,null,null,null,null,null,null,null,"",null,null,null,null,null,null,"Sarasota"]
[null,null,null,null,null,null,null,null,null,"",null,null,null,null,null,null,"Seminole"]
[null,null,null,null,null,null,null,null,null,"",null,null,null,null,null,null,"Sumter"]
[null,null,null,null,null,null,null,null,null,"",null,null,null,null,null,null,"Suwannee"]
[null,null,null,null,null,null,null,null,null,"",null,null,null,null,null,null,"Taylor"]
[null,null,null,null,null,null,null,null,null,"",null,null,null,null,null,null,"Union"]
[null,null,null,null,null,null,null,null,null,"",null,null,null,null,null,null,"Volusia"]
[null,null,null,null,null,null,null,null,null,"",null,null,null,null,null,null,"Wakulla"]
[null,null,null,null,null,null,null,null,null,{"$f":"IF(ISBLANK(I68),\"\",LEN(TRIM(I68))-LEN(SUBSTITUTE(TRIM(I68),\",\",\"\"))+1)","v":""},null,null,null,null,null,null,"Walton"]
[null,null,null,null,null,null,null,null,null,"",null,null,null,null,null,null,"Washington"]
[null,null,null,null,null,null,null,null,null,"",null,null,null,null,null,null,null,null,null,null,"Total Counties:"]
[null,null,null,null,null,null,null,null,null,"",null,null,null,null,null,null,null,null,null,null,"% Counties:"]
[null,null,null,null,null,null,null,null,null,""]
[null,null,null,null,null,null,null,null,null,"",null,null,null,null,null,null,"Region"]
[null,null,null,null,null,null,null,null,null,"",null,null,null,null,null,null,"A"]
[null,null,null,null,null,null,null,null,null,"",null,null,null,null,null,null,"B"]
[null,null,null,null,null,null,null,null,null,"",null,null,null,null,null,null,"C"]
[null,null,null,null,null,null,null,null,null,"",null,null,null,null,null,null,"D"]
[null,null,null,null,null,null,null,null,null,"",null,null,null,null,null,null,"E"]
[null,null,null,null,null,null,null,null,null,"",null,null,null,null,null,null,"F"]
[null,null,null,null,null,null,null,null,null,"",null,null,null,null,null,null,"G"]
[null,null,null,null,null,null,null,null,null,"",null,null,null,null,null,null,"H"]
[null,null,null,null,null,null,null,null,null,"",null,null,null,null,null,null,"I"]
[null,null,null,null,null,null,null,null,null,""]
[null,null,null,null,null,null,null,null,null,""]
[null,null,null,null,null,null,null,null,null,"",null,null,null,null,null,null,null,null,null,null,"Total Regions"]
[null,null,null,null,null,null,null,null,null,""]
[null,null,null,null,null,null,null,null,null,""]
[null,null,null,null,null,null,null,null,null,""]
[null,null,null,null,null,null,null,null,null,""]
[null,null,null,null,null,null,null,null,null,""]
[null,null,null,null,null,null,null,null,null,""]
[null,null,null,null,null,null,null,null,null,""]
[null,null,null,null,null,null,null,null,null,""]
[null,null,null,null,null,null,null,null,null,""]
[null,null,null,null,null,null,null,null,null,""]
[null,null,null,null,null,null,null,null,null,""]
[null,null,null,null,null,null,null,null,null,""]
[null,null,null,null,null,null,null,null,null,""]
[null,null,null,null,null,null,null,null,null,""]
[null,null,null,null,null,null,null,null,null,""]
[null,null,null,null,null,null,null,null,null,""]
[null,null,null,null,null,null,null,null,null,""]
[null,null,null,null,null,null,null,null,null,""]
[null,null,null,null,null,null,null,null,null,""]
[null,null,null,null,null,null,null,null,null,""]
[null,null,null,null,null,null,null,null,null,""]
[null,null,null,null,null,null,null,null,null,""]
[null,null,null,null,null,null,null,null,null,""]
[null,null,null,null,null,null,null,null,null,""]
[null,null,null,null,null,null,null,null,null,""]
[null,null,null,null,null,null,null,null,null,""]
[null,null,null,null,null,null,null,null,null,""]
[null,null,null,null,null,null,null,null,null,""]
[null,null,null,null,null,null,null,null,null,""]
[null,null,null,null,null,null,null,null,null,""]
[null,null,null,null,null,null,null,null,null,""]
[null,null,null,null,null,null,null,null,null,""]
[null,null,null,null,null,null,null,null,null,""]
[null,null,null,null,null,null,null,null,null,""]
[null,null,null,null,null,null,null,null,null,""]
[null,null,null,null,null,null,null,null,null,""]
[null,null,null,null,null,null,null,null,null,""]
[null,null,null,null,null,null,null,null,null,""]
[null,null,null,null,null,null,null,null,null,""]
[null,null,null,null,null,null,null,null,null,""]
[null,null,null,null,null,null,null,null,null,""]
[null,null,null,null,null,null,null,null,null,""]
[null,null,null,null,null,null,null,null,null,""]
[null,null,null,null,null,null,null,null,null,""]
[null,null,null,null,null,null,null,null,null,""]
[null,null,null,null,null,null,null,null,null,""]
[null,null,null,null,null,null,null,null,null,{"$f":"IF(ISBLANK(I132),\"\",LEN(TRIM(I132))-LEN(SUBSTITUTE(TRIM(I132),\",\",\"\"))+1)","v":""}]
[null,null,null,null,null,null,null,null,null,""]
[null,null,null,null,null,null,null,null,null,""]
[null,null,null,null,null,null,null,null,null,""]
[null,null,null,null,null,null,null,null,null,""]
[null,null,null,null,null,null,null,null,null,""]
[null,null,null,null,null,null,null,null,null,""]
[null,null,null,null,null,null,null,null,null,""]
[null,null,null,null,null,null,null,null,null,""]
[null,null,null,null,null,null,null,null,null,""]
[null,null,null,null,null,null,null,null,null,""]
[null,null,null,null,null,null,null,null,null,""]
[null,null,null,null,null,null,null,null,null,""]
[null,null,null,null,null,null,null,null,null,""]
[null,null,null,null,null,null,null,null,null,""]
[null,null,null,null,null,null,null,null,null,""]
[null,null,null,null,null,null,null,null,null,""]
[null,null,null,null,null,null,null,null,null,""]
[null,null,null,null,null,null,null,null,null,""]
[null,null,null,null,null,null,null,null,null,""]
[null,null,null,null,null,null,null,null,null,""]
[null,null,null,null,null,null,null,null,null,""]
[null,null,null,null,null,null,null,null,null,""]
[]
[null,null,"Back to Top"]
[]
[]
[]
[]
[]
[]
[null,null,null,null,{"$f":"SUM(#REF!)","v":{"$error":"#REF!"}},null,null,null,null,{"$f":"SUM(J4:J154)","v":0}]
[]
[]
[]
[]
[]
[]
[]
[]
[]
[]
[]
[]
[]
[]
[]
[]
[]
[]
[]
[]
[]
[]
[]
[]
[]
[]
[]
[]
[]
[]
[]
[]
[]
[]
[]
[]
[]
[]
[]
[]
[]
[]
[]
[]
[null,null,null,null,null,null,null,null,null,{"$f":"SUM(J128:J204)/67","v":0}]